lending/lending_fUSD_20240621
["ID","MTS","AMOUNT","RATE_DAILY","PERIOD"]
[330066705,1718983848100,-831.66,0.00021917,4]
[330066706,1718983848109,-515.38299907,0.00021917,4]
[330066707,1718983848121,-525.83,0.00021917,4]
[330066708,1718983848131,-848.3,0.00021917,4]
[330066709,1718983848140,-500.0,0.00021917,4]
[330066710,1718983848149,-500.0,0.00021917,4]
[330066711,1718983848159,-500.0,0.00021917,4]
[330066712,1718983848168,-770.8,0.00021917,4]
[330066713,1718983848178,-500.0,0.00021917,4]
[330066714,1718983848187,-500.0,0.00021917,4]
[330066715,1718983848197,-500.0,0.00021917,4]
[330066716,1718983848206,-500.0,0.00021917,4]
[330066717,1718983848215,-500.0,0.00021917,4]
[330066718,1718983848224,-500.0,0.00021917,4]
[330066719,1718983848233,-581.15,0.00021917,4]
[330066720,1718983848243,-500.0,0.00021917,4]
[330066721,1718983848252,-500.0,0.00021917,4]
[330066722,1718983848261,-500.0,0.00021917,4]
[330066723,1718983848271,-500.0,0.00021917,4]
[330066724,1718983848280,-609.37,0.00021917,4]
[330066725,1718983848289,-778.17,0.00021917,4]
[330066726,1718983848299,-587.32,0.00021917,4]
[330066727,1718983848309,-925.75,0.00021917,4]
[330066728,1718983848318,-500.0,0.00021917,4]
[330066729,1718983848327,-500.0,0.00021917,4]
[330066730,1718983848336,-500.0,0.00021917,4]
[330066731,1718983848345,-520.24229065,0.00021917,4]
[330066732,1718983848356,-658.33,0.00021917,4]
[330066733,1718983848366,-500.0,0.00021917,4]
[330066734,1718983848375,-500.0,0.00021917,4]
[330066735,1718983848385,-500.0,0.00021917,4]
[330066736,1718983848395,-500.0,0.00021917,4]
[330066737,1718983848404,-547.78497105,0.00021917,4]
[330066738,1718983848413,-1486.73,0.00021917,4]
[330066739,1718983848423,-500.0,0.00021917,4]
[330066740,1718983848432,-500.0,0.00021917,4]
[330066741,1718983848442,-500.0,0.00021917,4]
[330066742,1718983848451,-500.0,0.00021917,4]
[330066743,1718983848460,-500.0,0.00021917,4]
[330066744,1718983848470,-728.34,0.00021917,4]
[330066745,1718983848479,-500.0,0.00021917,4]
[330066746,1718983848489,-500.0,0.00021917,4]
[330066747,1718983848498,-500.0,0.00021917,4]
[330066748,1718983848508,-500.0,0.00021917,4]
[330066749,1718983848517,-717.43,0.00021917,4]
[330066750,1718983848527,-500.0,0.00021917,4]
[330066751,1718983848537,-500.0,0.00021917,4]
[330066752,1718983848546,-500.0,0.00021917,4]
[330066753,1718983848555,-356.68,0.00021917,4]
[330066754,1718983848565,-500.0,0.00021917,4]
[330066755,1718983848575,-500.0,0.00021917,4]
[330066756,1718983848585,-500.0,0.00021917,4]
[330066757,1718983848595,-515.38,0.00021917,4]
[330066758,1718983848606,-698.95,0.00021917,4]
[330066759,1718983848616,-1171.57,0.00021917,4]
[330066760,1718983848626,-500.0,0.00021917,4]
[330066761,1718983848636,-500.0,0.00021917,4]
[330066762,1718983848646,-759.17,0.00021917,4]
[330066763,1718983848655,-524.96,0.00021917,4]
[330066764,1718983848665,-500.0,0.00021917,4]
[330066765,1718983848674,-500.0,0.00021917,4]
[330066766,1718983848684,-500.0,0.00021917,4]
[330066767,1718983848694,-616.82,0.00021917,4]
[330066768,1718983848704,-500.0,0.00021917,4]
[330066769,1718983848714,-689.23,0.00021917,4]
[330066770,1718983848724,-500.0,0.00021917,4]
[330066771,1718983848733,-500.0,0.00021917,4]
[330066772,1718983848742,-508.97,0.00021917,4]
[330066773,1718983848752,-500.0,0.00021917,4]
[330066774,1718983848761,-500.0,0.00021917,4]
[330066775,1718983848771,-500.0,0.00021917,4]
[330066776,1718983848780,-778.23,0.00021917,4]
[330066777,1718983848790,-500.0,0.00021917,4]
[330066778,1718983848799,-500.0,0.00021917,4]
[330066779,1718983848808,-500.0,0.00021917,4]
[330066780,1718983848818,-500.0,0.00021917,4]
[330066781,1718983848828,-621.87,0.00021917,4]
[330066782,1718983848839,-1387.66,0.00021917,4]
[330066783,1718983848849,-500.0,0.00021917,4]
[330066784,1718983848858,-989.74,0.00021917,4]
[330066785,1718983848867,-500.0,0.00021917,4]
[330066786,1718983848877,-517.04,0.00021917,4]
[330066787,1718983848886,-513.14290111,0.00021917,4]
[330066788,1718983848896,-500.0,0.00021917,4]
[330066789,1718983848905,-1380.02,0.00021917,4]
[330066790,1718983848915,-584.69,0.00021917,4]
[330066791,1718983848924,-500.0,0.00021917,4]
[330066792,1718983848933,-545.74,0.00021917,4]
[330066793,1718983848943,-500.0,0.00021917,4]
[330066794,1718983848952,-500.0,0.00021917,4]
[330066795,1718983848964,-519.43,0.00021917,4]
[330066796,1718983848975,-550.54,0.00021917,4]
[330066797,1718983848984,-500.0,0.00021917,4]
[330066798,1718983848994,-841.55,0.00021917,4]
[330066799,1718983849003,-500.0,0.00021917,4]
[330066800,1718983849013,-641.09,0.00021917,4]
[330066801,1718983849027,-500.0,0.00021917,4]
[330066802,1718983849037,-500.0,0.00021917,4]
[330066803,1718983849047,-500.0,0.00021917,4]
[330066804,1718983849056,-500.0,0.00021917,4]
[330066805,1718983849067,-1051.44,0.00021917,4]
[330066806,1718983849076,-891.64,0.00021917,4]
[330066807,1718983849085,-545.91,0.00021917,4]
[330066808,1718983849095,-861.56,0.00021917,4]
[330066809,1718983849107,-195.29516331,0.00021917,4]
[330066810,1718983849116,-500.0,0.00021917,4]
[330066811,1718983849126,-500.0,0.00021917,4]
[330066812,1718983849135,-346.33324095,0.00021917,4]
[330066813,1718983849145,-500.0,0.00021917,4]
[330066814,1718983849155,-500.0,0.00021917,4]
[330066815,1718983849165,-509.86,0.00021917,4]
[330066816,1718983849175,-500.0,0.00021917,4]
[330066817,1718983849184,-1131.24,0.00021917,4]
[330066818,1718983849194,-500.0,0.00021917,4]
[330066819,1718983849204,-1125.72,0.00021917,4]
[330066820,1718983849214,-500.0,0.00021917,4]
[330066821,1718983849224,-500.0,0.00021917,4]
[330066822,1718983849237,-500.0,0.00021917,4]
[330066823,1718983849246,-876.63,0.00021917,4]
[330066824,1718983849256,-450.0,0.00021917,4]
[330066825,1718983849265,-500.0,0.00021917,4]
[330066826,1718983849274,-894.92,0.00021917,4]
[330066827,1718983849284,-870.18,0.00021917,4]
[330066828,1718983849294,-500.0,0.00021917,4]
[330066829,1718983849303,-780.7,0.00021917,4]
[330066830,1718983849312,-500.0,0.00021917,4]
[330066831,1718983849322,-500.0,0.00021917,4]
[330066832,1718983849331,-500.0,0.00021917,4]
[330066833,1718983849340,-1103.45,0.00021917,4]
[330066834,1718983849349,-500.0,0.00021917,4]
[330066835,1718983849359,-500.0,0.00021917,4]
[330066836,1718983849368,-500.0,0.00021917,4]
[330066837,1718983849377,-500.0,0.00021917,4]
[330066838,1718983849387,-657.18,0.00021917,4]
[330066839,1718983849396,-879.22,0.00021917,4]
[330066840,1718983849406,-500.0,0.00021917,4]
[330066841,1718983849415,-500.0,0.00021917,4]
[330066842,1718983849424,-500.0,0.00021917,4]
[330066843,1718983849434,-1899.21,0.00021917,4]
[330066844,1718983849443,-500.0,0.00021917,4]
[330066845,1718983849452,-994.03,0.00021917,4]
[330066846,1718983849462,-500.0,0.00021917,4]
[330066847,1718983849471,-513.66,0.00021917,4]
[330066848,1718983849479,-500.0,0.00021917,4]
[330066849,1718983849489,-1217.57,0.00021917,4]
[330066850,1718983849498,-922.32,0.00021917,4]
[330066851,1718983849507,-820.01,0.00021917,4]
[330066852,1718983849517,-695.52,0.00021917,4]
[330066853,1718983849526,-2096.28,0.00021917,4]
[330066854,1718983849536,-500.0,0.00021917,4]
[330066855,1718983849545,-500.0,0.00021917,4]
[330066856,1718983849555,-500.0,0.00021917,4]
[330066857,1718983849564,-500.0,0.00021917,4]
[330066858,1718983849574,-930.61,0.00021917,4]
[330066859,1718983849583,-500.0,0.00021917,4]
[330066860,1718983849592,-1304.08,0.00021917,4]
[330066861,1718983849602,-1172.87,0.00021917,4]
[330066862,1718983849611,-500.0,0.00021917,4]
[330066863,1718983849621,-1169.0,0.00021917,4]
[330066864,1718983849631,-500.0,0.00021917,4]
[330066865,1718983849640,-500.0,0.00021917,4]
[330066866,1718983849652,-500.0,0.00021917,4]
[330066867,1718983849662,-565.01,0.00021917,4]
[330066868,1718983849671,-1544.31,0.00021917,4]
[330066869,1718983849680,-500.0,0.00021917,2]
[330066870,1718983849690,-500.0,0.00021917,4]
[330066871,1718983849699,-500.0,0.00021917,4]
[330066872,1718983849708,-500.0,0.00021917,4]
[330066873,1718983849718,-500.0,0.00021917,4]
[330066874,1718983849727,-500.0,0.00021917,4]
[330066875,1718983849736,-500.0,0.00021917,4]
[330066876,1718983849746,-500.0,0.00021917,4]
[330066877,1718983849755,-2541.9,0.00021917,4]
[330066878,1718983849765,-500.0,0.00021917,4]
[330066879,1718983849775,-500.0,0.00021917,4]
[330066880,1718983849784,-2142.26,0.00021917,4]
[330066881,1718983849793,-583.58,0.00021917,4]
[330066882,1718983849802,-610.7,0.00021917,4]
[330066883,1718983849812,-586.57,0.00021917,4]
[330066884,1718983849821,-500.0,0.00021917,4]
[330066885,1718983849831,-500.0,0.00021917,4]
[330066886,1718983849840,-1504.33,0.00021917,4]
[330066887,1718983849852,-655.21,0.00021917,4]
[330066888,1718983849862,-3060.61,0.00021917,4]
[330066889,1718983849871,-500.0,0.00021917,4]
[330066890,1718983849881,-151.0,0.00021917,2]
[330066891,1718983849891,-151.0,0.00021917,2]
[330066892,1718983849901,-151.0,0.00021917,2]
[330066893,1718983849911,-151.0,0.00021917,2]
[330066894,1718983849921,-151.0,0.00021917,2]
[330066895,1718983849931,-151.0,0.00021917,2]
[330066896,1718983849941,-151.0,0.00021917,2]
[330066897,1718983849950,-555.25,0.00021917,4]
[330066898,1718983849960,-1161.42,0.00021917,4]
[330066899,1718983849969,-500.0,0.00021917,4]
[330066900,1718983849978,-500.0,0.00021917,4]
[330066901,1718983849988,-500.0,0.00021917,4]
[330066902,1718983849998,-500.0,0.00021917,4]
[330066903,1718983850008,-500.0,0.00021917,4]
[330066904,1718983850018,-880.19,0.00021917,4]
[330066905,1718983850029,-500.0,0.00021917,4]
[330066906,1718983850040,-500.0,0.00021917,4]
[330066907,1718983850050,-500.0,0.00021917,4]
[330066908,1718983850060,-500.0,0.00021917,4]
[330066909,1718983850070,-2155.18,0.00021917,4]
[330066910,1718983850082,-1109.51,0.00021917,4]
[330066911,1718983850092,-500.0,0.00021917,4]
[330066912,1718983850103,-487.62065855,0.00021917,4]
[330066913,1718983850114,-634.83,0.00021917,4]
[330066914,1718983850126,-500.0,0.00021917,4]
[330066915,1718983850135,-500.0,0.00021917,4]
[330066916,1718983850146,-525.77,0.00021917,4]
[330066917,1718983850157,-500.0,0.00021917,4]
[330066918,1718983850168,-1271.49,0.00021917,4]
[330066919,1718983850318,-580.26,0.00021917,4]
[330066920,1718983850332,-1052.19,0.00021917,4]
[330066921,1718983850342,-500.0,0.00021917,4]
[330066922,1718983850354,-151.0,0.00021917,2]
[330066923,1718983850364,-151.0,0.00021917,2]
[330066924,1718983850374,-156.78611,0.00021917,2]
[330066925,1718983850384,-500.0,0.00021917,4]
[330066926,1718983850394,-720.74,0.00021917,4]
[330066927,1718983850404,-218.69,0.00021917,4]
[330066928,1718983850414,-500.0,0.00021917,4]
[330066929,1718983850424,-500.0,0.00021917,4]
[330066930,1718983850434,-500.0,0.00021917,4]
[330066931,1718983850444,-1460.61,0.00021917,4]
[330066932,1718983850453,-500.0,0.00021917,4]
[330066933,1718983850463,-500.0,0.00021917,4]
[330066934,1718983850473,-1361.0,0.00021917,4]
[330066935,1718983850483,-640.55,0.00021917,4]
[330066936,1718983850492,-1714.31,0.00021917,4]
[330066937,1718983850502,-2034.4,0.00021917,4]
[330066938,1718983850512,-500.0,0.00021917,4]
[330066939,1718983850522,-1650.06,0.00021917,4]
[330066940,1718983850532,-1373.9,0.00021917,4]
[330066941,1718983850541,-500.0,0.00021917,4]
[330066942,1718983850551,-2175.02,0.00021917,4]
[330066943,1718983850561,-223.07504257,0.00021917,4]
[330066944,1718983850572,-500.0,0.00021917,4]
[330066945,1718983850582,-500.0,0.00021917,4]
[330066946,1718983850592,-500.0,0.00021917,4]
[330066947,1718983850605,-1483.87,0.00021917,4]
[330066948,1718983850615,-236.86317723,0.00021917,4]
[330066949,1718983850624,-1111.01,0.00021917,4]
[330066950,1718983850634,-1131.56,0.00021917,4]
[330066951,1718983850644,-500.0,0.00021917,4]
[330066952,1718983850658,-690.27,0.00021917,4]
[330066953,1718983850667,-500.0,0.00021917,4]
[330066954,1718983850677,-2364.85,0.00021917,4]
[330066955,1718983850687,-515.71575908,0.00021917,4]
[330066956,1718983850697,-504.21699979,0.00021917,4]
[330066957,1718983850706,-500.0,0.00021917,4]
[330066958,1718983850716,-500.0,0.00021917,4]
[330066959,1718983850726,-821.59,0.00021917,4]
[330066960,1718983850735,-500.0,0.00021917,4]
[330066961,1718983850745,-1984.86,0.00021917,4]
[330066962,1718983850755,-500.0,0.00021917,4]
[330066963,1718983850764,-500.0,0.00021917,4]
[330066964,1718983850774,-480.85230358,0.00021917,4]
[330066965,1718983850783,-798.78,0.00021917,4]
[330066966,1718983850793,-500.0,0.00021917,4]
[330066967,1718983850802,-500.0,0.00021917,4]
[330066968,1718983850812,-500.0,0.00021917,4]
[330066969,1718983850822,-500.0,0.00021917,4]
[330066970,1718983850832,-500.0,0.00021917,4]
[330066971,1718983850841,-1011.32,0.00021917,4]
[330066972,1718983850854,-500.0,0.00021917,4]
[330066973,1718983850864,-1542.45,0.00021917,4]
[330066974,1718983850873,-500.0,0.00021917,4]
[330066975,1718983850882,-500.0,0.00021917,4]
[330066976,1718983850891,-500.0,0.00021917,4]
[330066977,1718983850900,-1801.64,0.00021917,4]
[330066978,1718983850910,-1289.04,0.00021917,4]
[330066979,1718983850920,-500.0,0.00021917,4]
[330066980,1718983850931,-1451.0,0.00021917,4]
[330066981,1718983850942,-1670.9,0.00021917,4]
[330066982,1718983850951,-500.0,0.00021917,4]
[330066983,1718983850961,-500.0,0.00021917,4]
[330066984,1718983850972,-783.02,0.00021917,4]
[330066985,1718983850981,-1177.73,0.00021917,4]
[330066986,1718983850991,-1185.09,0.00021917,4]
[330066987,1718983851001,-1413.22,0.00021917,4]
[330066988,1718983851011,-710.38,0.00021917,4]
[330066989,1718983851025,-151.0,0.00021917,2]
[330066990,1718983851034,-500.0,0.00021917,4]
[330066991,1718983851044,-151.0,0.00021917,2]
[330066992,1718983851053,-215.357137,0.00021917,2]
[330066993,1718983851064,-665.35,0.00021917,4]
[330066994,1718983851073,-699.35,0.00021917,4]
[330066995,1718983851083,-1176.45,0.00021917,4]
[330066996,1718983851094,-773.2,0.00021917,4]
[330066997,1718983851110,-500.0,0.00021917,4]
[330066998,1718983851120,-500.0,0.00021917,4]
[330066999,1718983851130,-960.82,0.00021917,4]
[330067000,1718983851139,-632.55,0.00021917,4]
[330067001,1718983851149,-782.87,0.00021917,4]
[330067002,1718983851159,-527.63,0.00021917,4]
[330067003,1718983851168,-703.85,0.00021917,4]
[330067004,1718983851177,-576.67,0.00021917,4]
[330067005,1718983851186,-500.0,0.00021917,4]
[330067006,1718983851195,-1605.68,0.00021917,4]
[330067007,1718983851204,-791.36,0.00021917,4]
[330067008,1718983851213,-792.07,0.00021917,4]
[330067009,1718983851222,-500.0,0.00021917,4]
[330067010,1718983851232,-500.0,0.00021917,4]
[330067011,1718983851242,-1530.98,0.00021917,4]
[330067012,1718983851251,-1052.23,0.00021917,4]
[330067013,1718983851261,-500.0,0.00021917,4]
[330067014,1718983851270,-1659.04,0.00021917,4]
[330067015,1718983851280,-500.32,0.00021917,8]
[330067016,1718983851290,-500.0,0.00021917,4]
[330067017,1718983851299,-500.0,0.00021917,4]
[330067018,1718983851309,-500.0,0.00021917,4]
[330067019,1718983851319,-722.64,0.00021917,4]
[330067020,1718983851328,-1276.28,0.00021917,4]
[330067021,1718983851338,-500.0,0.00021917,4]
[330067022,1718983851348,-500.0,0.00021917,4]
[330067023,1718983851359,-1008.65,0.00021917,4]
[330067024,1718983851369,-500.0,0.00021917,4]
[330067025,1718983851379,-985.06,0.00021917,4]
[330067026,1718983851389,-979.78,0.00021917,4]
[330067027,1718983851398,-500.0,0.00021917,4]
[330067028,1718983851408,-500.0,0.00021917,4]
[330067029,1718983851417,-1288.38,0.00021917,4]
[330067030,1718983851427,-1149.49,0.00021917,4]
[330067031,1718983851438,-651.63,0.00021917,4]
[330067032,1718983851448,-500.0,0.00021917,4]
[330067033,1718983851458,-500.0,0.00021917,4]
[330067034,1718983851467,-500.0,0.00021917,4]
[330067035,1718983851477,-500.0,0.00021917,4]
[330067036,1718983851486,-3015.54,0.00021917,4]
[330067037,1718983851496,-500.0,0.00021917,4]
[330067038,1718983851506,-506.15,0.00021917,4]
[330067039,1718983851516,-1150.16,0.00021917,4]
[330067040,1718983851525,-500.0,0.00021917,4]
[330067041,1718983851534,-500.0,0.00021917,4]
[330067042,1718983851544,-500.0,0.00021917,4]
[330067043,1718983851554,-803.65,0.00021917,4]
[330067044,1718983851564,-2021.89,0.00021917,4]
[330067045,1718983851573,-678.26,0.00021917,4]
[330067046,1718983851584,-891.0,0.00021917,4]
[330067047,1718983851593,-500.0,0.00021917,4]
[330067048,1718983851604,-500.0,0.00021917,4]
[330067049,1718983851614,-500.0,0.00021917,4]
[330067050,1718983851624,-504.45,0.00021917,4]
[330067051,1718983851634,-500.0,0.00021917,4]
[330067052,1718983851643,-500.0,0.00021917,4]
[330067053,1718983851655,-2445.16,0.00021917,4]
[330067054,1718983851665,-1331.52,0.00021917,4]
[330067055,1718983851675,-500.0,0.00021917,4]
[330067056,1718983851685,-1185.85,0.00021917,4]
[330067057,1718983851695,-597.33,0.00021917,4]
[330067058,1718983851704,-805.6,0.00021917,4]
[330067059,1718983851714,-500.0,0.00021917,4]
[330067060,1718983851724,-2045.14,0.00021917,4]
[330067061,1718983851734,-851.0,0.00021917,4]
[330067062,1718983851743,-151.0,0.00021917,2]
[330067063,1718983851753,-292.706723,0.00021917,2]
[330067064,1718983851763,-1393.35,0.00021917,4]
[330067065,1718983851772,-500.0,0.00021917,4]
[330067066,1718983851783,-730.26,0.00021917,4]
[330067067,1718983851793,-1851.14,0.00021917,4]
[330067068,1718983851802,-151.0,0.00021917,2]
[330067069,1718983851812,-151.0,0.00021917,2]
[330067070,1718983851822,-500.0,0.00021917,4]
[330067071,1718983851832,-151.0,0.00021917,2]
[330067072,1718983851842,-151.0,0.00021917,2]
[330067073,1718983851852,-1801.45,0.00021917,4]
[330067074,1718983851862,-151.0,0.00021917,2]
[330067075,1718983851872,-242.671073,0.00021917,2]
[330067076,1718983851882,-854.4,0.00021917,4]
[330067077,1718983851891,-538.8105946,0.00021917,4]
[330067078,1718983851901,-331.03621012,0.00021917,4]
[330067079,1718983851911,-575.72,0.00021917,4]
[330067080,1718983851922,-500.0,0.00021917,4]
[330067081,1718983851933,-500.0,0.00021917,4]
[330067082,1718983851944,-500.0,0.00021917,4]
[330067083,1718983851953,-151.0,0.00021917,2]
[330067084,1718983851963,-151.0,0.00021917,2]
[330067085,1718983851973,-191.712934,0.00021917,2]
[330067086,1718983851983,-500.0,0.00021917,4]
[330067087,1718983851992,-500.0,0.00021917,4]
[330067088,1718983852002,-500.0,0.00021917,4]
[330067089,1718983852012,-500.0,0.00021917,4]
[330067090,1718983852022,-696.98,0.00021917,4]
[330067091,1718983852037,-931.2,0.00021917,4]
[330067092,1718983852047,-500.0,0.00021917,4]
[330067093,1718983852057,-879.0,0.00021917,4]
[330067094,1718983852068,-491.24694429,0.00021917,4]
[330067095,1718983852077,-802.76,0.00021917,4]
[330067096,1718983852088,-500.0,0.00021917,4]
[330067097,1718983852101,-500.0,0.00021917,4]
[330067098,1718983852114,-500.0,0.00021917,4]
[330067099,1718983852124,-1687.33,0.00021917,4]
[330067100,1718983852135,-500.0,0.00021917,4]
[330067101,1718983852145,-500.0,0.00021917,4]
[330067102,1718983852155,-5000.0,0.00021917,4]
[330067103,1718983852165,-705.72,0.00021917,4]
[330067104,1718983852175,-500.0,0.00021917,4]
[330067105,1718983852185,-500.0,0.00021917,4]
[330067106,1718983852195,-500.0,0.00021917,4]
[330067107,1718983852206,-624.37,0.00021917,4]
[330067108,1718983852216,-500.0,0.00021917,4]
[330067109,1718983852226,-500.0,0.00021917,4]
[330067110,1718983852235,-1938.67,0.00021917,4]
[330067111,1718983852245,-500.0,0.00021917,4]
[330067112,1718983852255,-500.0,0.00021917,4]
[330067113,1718983852264,-609.58,0.00021917,4]
[330067114,1718983852274,-651.91,0.00021917,4]
[330067115,1718983852284,-1801.0,0.00021917,4]
[330067116,1718983852294,-1558.22,0.00021917,4]
[330067117,1718983852304,-500.0,0.00021917,4]
[330067118,1718983852314,-727.33,0.00021917,4]
[330067119,1718983852324,-1957.49,0.00021917,4]
[330067120,1718983852335,-500.0,0.00021917,4]
[330067121,1718983852344,-3058.37,0.00021917,4]
[330067122,1718983852355,-500.0,0.00021917,4]
[330067123,1718983852365,-761.52,0.00021917,4]
[330067124,1718983852375,-560.52,0.00021917,4]
[330067125,1718983852384,-500.0,0.00021917,4]
[330067126,1718983852394,-1905.77,0.00021917,4]
[330067127,1718983852403,-2489.67,0.00021917,4]
[330067128,1718983852413,-507.77,0.00021917,4]
[330067129,1718983852423,-800.07,0.00021917,4]
[330067130,1718983852432,-500.0,0.00021917,4]
[330067131,1718983852442,-500.0,0.00021917,4]
[330067132,1718983852452,-2046.79,0.00021917,4]
[330067133,1718983852461,-542.22,0.00021917,4]
[330067134,1718983852471,-500.0,0.00021917,4]
[330067135,1718983852480,-652.77,0.00021917,4]
[330067136,1718983852490,-1056.5,0.00021917,4]
[330067137,1718983852500,-500.0,0.00021917,4]
[330067138,1718983852509,-500.0,0.00021917,4]
[330067139,1718983852519,-500.0,0.00021917,4]
[330067140,1718983852528,-2786.15,0.00021917,4]
[330067141,1718983852538,-500.0,0.00021917,4]
[330067142,1718983852548,-151.0,0.00021917,2]
[330067143,1718983852557,-609.25,0.00021917,4]
[330067144,1718983852567,-151.0,0.00021917,2]
[330067145,1718983852577,-718.21,0.00021917,4]
[330067146,1718983852587,-151.0,0.00021917,2]
[330067147,1718983852596,-151.0,0.00021917,2]
[330067148,1718983852609,-1039.99,0.00021917,4]
[330067149,1718983852619,-151.0,0.00021917,2]
[330067150,1718983852628,-500.0,0.00021917,4]
[330067151,1718983852959,-500.0,0.00021917,4]
[330067152,1718983852987,-1935.47,0.00021917,4]
[330067153,1718983852997,-500.0,0.00021917,7]
[330067154,1718983853007,-500.0,0.00021917,4]
[330067155,1718983853017,-916.97,0.00021917,4]
[330067156,1718983853028,-1725.39,0.00021917,4]
[330067157,1718983853042,-500.0,0.00021917,4]
[330067158,1718983853051,-181.46500895,0.00021917,4]
[330067159,1718983853061,-608.31,0.00021917,4]
[330067160,1718983853072,-500.0,0.00021917,4]
[330067161,1718983853081,-577.13,0.00021917,4]
[330067162,1718983853091,-1803.16,0.00021917,4]
[330067163,1718983853104,-560.78692689,0.00021917,4]
[330067164,1718983853114,-500.0,0.00021917,4]
[330067165,1718983853124,-500.0,0.00021917,4]
[330067166,1718983853133,-500.0,0.00021917,4]
[330067167,1718983853143,-500.0,0.00021917,4]
[330067168,1718983853153,-1054.87,0.00021917,4]
[330067169,1718983853162,-630.05,0.00021917,4]
[330067170,1718983853172,-1119.73,0.00021917,4]
[330067171,1718983853182,-500.0,0.00021917,4]
[330067172,1718983853191,-1095.16,0.00021917,4]
[330067173,1718983853202,-533.46193,0.00021917,4]
[330067174,1718983853211,-500.0,0.00021917,4]
[330067175,1718983853221,-500.0,0.00021917,4]
[330067176,1718983853231,-500.0,0.00021917,4]
[330067177,1718983853241,-688.92,0.00021917,4]
[330067178,1718983853251,-151.0,0.00021917,2]
[330067179,1718983853260,-979.13,0.00021917,4]
[330067180,1718983853270,-1310.86,0.00021917,4]
[330067181,1718983853280,-606.68,0.00021917,4]
[330067182,1718983853290,-151.0,0.00021917,2]
[330067183,1718983853300,-500.0,0.00021917,4]
[330067184,1718983853310,-151.0,0.00021917,2]
[330067185,1718983853319,-1789.8,0.00021917,4]
[330067186,1718983853329,-151.0,0.00021917,2]
[330067187,1718983853339,-1835.54,0.00021917,4]
[330067188,1718983853349,-151.0,0.00021917,2]
[330067189,1718983853360,-500.0,0.00021917,4]
[330067190,1718983853370,-151.0,0.00021917,2]
[330067191,1718983853379,-523.4,0.00021917,4]
[330067192,1718983853392,-1619.85,0.00021917,4]
[330067193,1718983853401,-500.0,0.00021917,4]
[330067194,1718983853411,-151.0,0.00021917,2]
[330067195,1718983853421,-151.0,0.00021917,2]
[330067196,1718983853431,-793.83,0.00021917,4]
[330067197,1718983853440,-500.0,0.00021917,4]
[330067198,1718983853450,-500.0,0.00021917,4]
[330067199,1718983853460,-672.24,0.00021917,4]
[330067200,1718983853469,-806.01,0.00021917,4]
[330067201,1718983853479,-500.0,0.00021917,4]
[330067202,1718983853488,-500.0,0.00021917,4]
[330067203,1718983853498,-1427.1,0.00021917,4]
[330067204,1718983853507,-965.23,0.00021917,4]